bitfinex/quotes_ETHUSD_20241023
["timestamp","ask_amount","ask_price","bid_price","bid_amount"]
[1729649051749,1.6736008,2623.8,2623.5,6.13638538]
[1729649052675,1.6736008,2623.8,2623.5,2.70591538]
[1729649052878,5.1040008,2623.6,2623.4,0.79338751]
[1729649053093,1.6736008,2623.5,2623.4,0.79338751]
[1729649053377,1.6736008,2623.5,2623.3,0.79338751]
[1729649053679,1.6736008,2623.5,2623.2,0.79338751]
[1729649053680,1.6736008,2623.4,2623.2,0.79338751]
[1729649054171,1.6736008,2623.3,2623.2,0.79338751]
[1729649054383,1.6736008,2623.4,2623.2,0.79338751]
[1729649054876,3.43053,2623.5,2623.2,0.79338751]
[1729649054877,1.6736008,2623.3,2623.2,0.79338751]
[1729649055074,1.6736008,2623.4,2623.2,0.79338751]
[1729649055572,1.6736008,2623.3,2623.2,0.79338751]
[1729649055790,5.1043908,2623.3,2623.1,0.79338751]
[1729649055989,1.6736008,2623.2,2623.1,0.79338751]
[1729649056547,1.6736008,2623.2,2623.0,0.79338751]
[1729649056790,1.6736008,2623.3,2623.0,0.79338751]
[1729649057547,1.6736008,2623.3,2622.9,5.05349751]
[1729649057793,1.6736008,2623.3,2623.0,0.79338751]
[1729649058090,1.6736008,2623.3,2622.9,5.05349751]
[1729649059069,1.6736008,2623.3,2623.0,0.79338751]
[1729649059366,1.6736008,2623.2,2623.0,0.79338751]
[1729649059571,1.6736008,2623.2,2622.9,5.05349751]
[1729649060160,1.6736008,2623.3,2622.9,5.05349751]
[1729649061688,1.6736008,2623.3,2622.9,1.62218751]
[1729649061889,1.6736008,2623.3,2623.0,3.43117]
[1729649064818,1.6736008,2623.3,2622.9,1.62218751]
[1729649065018,1.6736008,2623.2,2622.9,5.05349751]
[1729649065523,1.6736008,2623.3,2622.9,5.05349751]
[1729649066304,1.6736008,2623.1,2622.9,1.62218751]
[1729649066512,1.6736008,2623.1,2622.9,0.79338751]
[1729649066687,1.6736008,2623.1,2622.8,4.22473751]
[1729649067321,6.86173,2623.3,2622.8,4.22473751]
[1729649067322,1.6736008,2623.2,2622.8,4.22473751]
[1729649069583,1.6736008,2623.3,2622.8,4.22473751]
[1729649069926,1.6736008,2623.3,2623.0,0.8087]
[1729649072629,4.24547,2623.4,2623.0,0.8087]
[1729649072630,5.9190708,2623.4,2623.0,0.8087]
[1729649073333,1.6736008,2623.3,2623.0,0.8087]
[1729649073532,5.1042708,2623.4,2623.0,0.8087]
[1729649074240,1.6736008,2623.3,2623.0,0.8087]
[1729649074482,5.1042708,2623.4,2623.0,0.8087]
[1729649074734,5.1042708,2623.4,2623.0,4.23987]
[1729649076346,1.6736008,2623.3,2623.0,4.23987]
[1729649078117,1.6736008,2623.3,2623.0,5.03325751]
[1729649079762,5.1042708,2623.4,2623.0,5.03325751]
[1729649081655,1.6736008,2623.3,2623.0,5.03325751]
[1729649082763,1.6736008,2623.2,2623.0,5.03325751]
[1729649083135,1.6736008,2623.3,2623.0,5.03325751]
[1729649085655,1.6736008,2623.4,2623.0,5.03325751]
[1729649086791,1.6736008,2623.4,2623.0,5.03319751]
[1729649087077,1.6736008,2623.5,2623.1,3.43102]
[1729649087569,5.9042908,2623.8,2623.4,3.43065]
[1729649087771,1.6736008,2623.8,2623.5,3.43044]
[1729649088582,0.8005,2624.0,2623.6,3.43037]
[1729649088756,1.6736008,2623.9,2623.6,3.43037]
[1729649088973,3.42976,2624.1,2623.6,3.43037]
[1729649089263,1.6736008,2623.8,2623.6,3.43037]
[1729649090133,1.6736008,2623.8,2623.5,3.43052]
[1729649091465,1.6736008,2623.9,2623.6,3.43038]
[1729649091687,1.6736008,2623.9,2623.7,0.7916]
[1729649098185,3.42975,2624.1,2623.5,4.22212]
[1729649098186,1.6736008,2623.8,2623.5,4.22212]
[1729649098335,1.6736008,2623.7,2623.5,4.22212]
[1729649098537,1.6736008,2623.7,2623.4,0.79338751]
[1729649098738,1.6736008,2623.7,2623.4,4.22402751]
[1729649098938,2.4780008,2623.8,2623.5,3.43052]
[1729649099237,1.6736008,2623.7,2623.5,3.43052]
[1729649099954,2.4780008,2623.8,2623.5,3.43052]
[1729649100268,1.6736008,2623.7,2623.4,0.79338751]
[1729649100809,1.6736008,2623.7,2623.4,4.22403751]
[1729649102591,1.6736008,2623.6,2623.4,0.79338751]
[1729649103088,1.6736008,2623.5,2623.3,5.01576751]
[1729649103292,1.6736008,2623.4,2623.3,0.79338751]
[1729649103449,2.4780008,2623.4,2623.2,0.79338751]
[1729649104067,1.6736008,2623.3,2623.2,0.79338751]
[1729649104394,1.6736008,2623.3,2623.0,0.79338751]
[1729649104395,3.43092,2623.2,2623.0,0.79338751]
[1729649104550,1.6736008,2623.1,2623.0,0.79338751]
[1729649104959,1.6736008,2623.1,2622.9,0.79338751]
[1729649105755,1.6736008,2623.1,2622.8,0.79338751]
[1729649106756,1.6736008,2623.2,2622.8,0.79338751]
[1729649106952,1.6736008,2623.3,2622.9,6.86255]
[1729649107199,1.6736008,2623.4,2623.0,4.22327]
[1729649107780,1.6736008,2623.3,2623.0,0.7921]
[1729649109982,5.1043908,2623.3,2623.0,0.7921]
[1729649110188,1.6736008,2623.2,2623.0,0.7921]
[1729649111474,1.6736008,2623.3,2623.0,0.7921]
[1729649113310,1.6736008,2623.3,2623.0,4.22328]
[1729649113506,1.6736008,2623.4,2623.0,4.22322]
[1729649114061,5.1042808,2623.4,2623.0,4.22322]
[1729649114666,1.6736008,2623.3,2623.0,4.22322]
[1729649115887,5.1042808,2623.4,2623.0,4.22322]
[1729649116907,5.1042808,2623.4,2623.0,0.7921]
[1729649117063,1.6736008,2623.3,2623.0,0.7921]
[1729649117510,5.1042808,2623.4,2623.0,0.7921]
[1729649118803,1.6736008,2623.3,2623.0,0.7921]
[1729649120498,5.1042808,2623.4,2623.0,0.7921]
[1729649120681,1.6736008,2623.3,2623.0,0.7921]
[1729649122669,5.1042808,2623.4,2623.0,0.7921]
[1729649123005,1.6736008,2623.3,2623.0,0.7921]
[1729649124503,5.1044108,2623.3,2623.0,0.7921]
[1729649124927,1.6736008,2623.2,2623.0,0.7921]
[1729649125118,5.1044108,2623.3,2623.0,0.7921]
[1729649127270,1.6736008,2623.2,2623.0,0.7921]
[1729649127477,1.6736008,2623.2,2622.8,5.01361751]
[1729649127674,5.1049108,2622.9,2622.8,0.79338751]
[1729649127868,1.6736008,2622.9,2622.6,0.79338751]
[1729649128217,1.6736008,2622.8,2622.5,5.01393751]
[1729649128385,1.6736008,2622.8,2622.5,1.58218751]
[1729649128568,3.43137,2622.9,2622.5,1.58218751]
[1729649128907,1.6736008,2622.8,2622.5,1.58218751]
[1729649129112,5.1049708,2622.9,2622.5,1.58218751]
[1729649129808,1.6736008,2622.8,2622.5,1.58218751]
[1729649131408,1.6736008,2622.9,2622.5,5.01400751]
[1729649132487,1.6736008,2622.8,2622.5,5.01400751]
[1729649132808,1.6736008,2622.8,2622.5,4.22062]
[1729649135572,5.1050508,2622.8,2622.5,0.7888]
[1729649135772,1.6736008,2622.8,2622.5,0.7888]
[1729649136713,1.6736008,2622.9,2622.5,4.22063]
[1729649137114,1.6736008,2622.8,2622.5,4.22063]
[1729649137607,1.6736008,2622.9,2622.5,4.22063]
[1729649139015,1.6736008,2622.8,2622.5,4.22063]
[1729649139221,1.6736008,2622.9,2622.5,7.65246]
[1729649139539,1.6736008,2622.8,2622.5,4.22063]
[1729649139935,1.6736008,2622.6,2622.5,0.7888]
[1729649140257,1.6736008,2622.6,2622.4,0.79338751]
[1729649141012,1.6736008,2622.5,2622.2,0.79338751]
[1729649141208,1.6736008,2622.5,2622.1,1.57458751]
[1729649141209,1.6736008,2622.4,2622.1,1.57458751]
[1729649142353,1.6736008,2622.4,2622.1,5.00692751]
[1729649142650,1.6736008,2622.5,2622.1,5.00692751]
[1729649142824,3.43171,2622.6,2622.1,5.00692751]
[1729649142825,5.1053108,2622.6,2622.2,3.43222]
[1729649143938,5.1053108,2622.6,2622.1,1.57458751]
[1729649143939,1.6736008,2622.4,2622.1,5.00694751]
[1729649146861,5.1054408,2622.5,2622.1,5.00694751]
[1729649147961,1.6736008,2622.4,2622.1,5.00694751]
[1729649148519,5.1054408,2622.5,2622.1,5.00694751]
[1729649148760,1.6736008,2622.4,2622.1,5.00694751]
[1729649150865,3.43184,2622.5,2622.1,5.00694751]
[1729649150866,5.1054408,2622.5,2622.1,5.00694751]
[1729649152727,5.1054408,2622.5,2622.1,1.57458751]
[1729649153052,1.6736008,2622.3,2622.1,1.57458751]
[1729649153387,1.6736008,2622.2,2621.9,1.57068751]
[1729649153553,5.9342708,2622.4,2621.9,5.00329751]
[1729649154198,1.6736008,2622.3,2621.9,5.00329751]
[1729649155287,5.9342708,2622.4,2621.9,5.00329751]
[1729649155488,2.5023008,2622.4,2622.0,3.43248]
[1729649155989,2.5023008,2622.4,2621.9,1.57068751]
[1729649155990,5.9343308,2622.4,2621.9,1.57068751]
[1729649156185,5.9343308,2622.4,2621.9,5.00328751]
[1729649158156,1.6736008,2622.3,2621.9,5.00328751]
[1729649158355,0.8287,2622.4,2622.0,3.43241]
[1729649158552,2.5023008,2622.4,2622.0,3.43241]
[1729649158756,1.6736008,2622.3,2621.9,5.00329751]
[1729649160192,1.6736008,2622.2,2621.8,4.22610751]
[1729649160494,3.43212,2622.3,2621.8,4.22610751]
[1729649160495,8.5379308,2622.3,2621.8,4.22610751]
[1729649160652,1.6736008,2622.2,2621.8,4.22610751]
[1729649160882,1.6736008,2622.2,2621.8,0.79338751]
[1729649161068,1.6736008,2622.0,2621.7,1.57068751]
[1729649161271,1.6736008,2622.0,2621.7,0.7773]
[1729649162011,5.1061008,2622.0,2621.7,0.7773]
[1729649162315,1.6736008,2622.0,2621.7,0.7773]
[1729649162514,1.6736008,2622.0,2621.6,4.22632751]
[1729649162515,5.1061608,2622.0,2621.6,0.79338751]
[1729649162809,1.6736008,2622.0,2621.6,3.43299]
[1729649164113,1.6736008,2621.7,2621.4,0.79338751]
[1729649164323,0.8287,2621.8,2621.4,3.43327]
[1729649164521,2.5023008,2621.8,2621.4,3.43327]
[1729649165399,5.9350908,2621.8,2621.4,3.43327]
[1729649165921,5.9350908,2621.8,2621.3,3.4334]
[1729649169233,1.6736008,2621.4,2621.2,0.7773]
[1729649169387,1.6736008,2621.4,2621.0,3.43373]
[1729649169726,3.43296,2621.7,2621.2,4.23057]
[1729649169727,4.20146,2621.7,2621.2,4.23057]
[1729649169941,5.8750608,2621.7,2621.2,4.23057]
[1729649170230,1.6736008,2621.6,2621.2,4.23057]
[1729649170402,4.20146,2621.7,2621.2,4.23057]
[1729649170933,5.8750608,2621.7,2621.2,4.23057]
[1729649171434,3.43304,2621.6,2621.2,4.23057]
[1729649172205,1.6736008,2621.5,2621.2,0.7971]
[1729649172527,3.43315,2621.5,2621.2,0.7971]
[1729649172729,5.1067508,2621.5,2621.2,0.7971]
[1729649173223,5.1067508,2621.5,2621.0,4.23082]
[1729649173534,3.43315,2621.5,2621.1,3.43367]
[1729649175739,5.1067508,2621.5,2621.1,3.43367]
[1729649177147,1.6736008,2621.2,2620.8,1.59421999]
[1729649177306,1.6736008,2620.9,2620.8,0.79711999]
[1729649178203,5.1075308,2620.9,2620.8,0.79711999]
[1729649178958,8.0996316,2620.9,2620.8,0.79711999]
[1729649179243,11.0996316,2620.9,2620.8,0.79711999]
[1729649179554,9.4260308,2620.9,2620.8,0.79711999]
[1729649179714,11.0996316,2620.9,2620.8,0.79711999]
[1729649181649,0.7588,2620.4,2619.9,6.87029]
[1729649181852,1.6736008,2620.3,2620.0,3.4351]
[1729649182437,1.6736008,2620.2,2619.9,4.204179]
[1729649182649,2.4324008,2620.4,2620.0,3.43501]
[1729649182950,1.6736008,2620.4,2620.1,0.7639189]
[1729649190139,1.6736008,2620.3,2619.9,4.204179]
[1729649190483,1.6736008,2620.3,2619.9,7.639349]
[1729649190631,1.6736008,2620.3,2619.9,4.204179]
[1729649190978,1.6736008,2620.2,2619.9,4.204179]
[1729649191131,1.6736008,2620.0,2619.8,0.8201]
[1729649191338,3.43459,2620.4,2619.8,0.8201]
[1729649191339,1.6736008,2619.9,2619.8,0.8201]
[1729649191538,1.6736008,2620.0,2619.7,3.43542]
[1729649191776,1.6736008,2619.9,2619.7,3.43542]
[1729649192127,1.6736008,2619.9,2619.6,0.8201]
[1729649192544,1.6736008,2620.0,2619.6,0.8201]
[1729649192744,1.6736008,2620.0,2619.5,3.43563]
[1729649192745,1.6736008,2619.8,2619.5,3.43563]
[1729649192947,3.43516,2620.0,2619.6,3.43555]
[1729649192948,1.6736008,2620.0,2619.6,3.43555]
[1729649193430,1.6736008,2620.0,2619.6,3.43556]
[1729649194242,1.6736008,2619.7,2619.4,4.25595]
[1729649194476,1.6736008,2619.5,2619.4,4.256]
[1729649194741,1.6736008,2619.6,2619.4,4.256]
[1729649194894,1.6736008,2619.6,2619.4,4.25593]
[1729649195397,1.6736008,2619.6,2619.4,7.69173]
[1729649195891,1.6736008,2619.6,2619.4,4.2559]
[1729649196186,1.6736008,2619.7,2619.5,3.43577]
[1729649196350,1.6736008,2619.7,2619.4,4.2559]
[1729649197145,1.6736008,2619.7,2619.4,7.69172]
[1729649197351,1.6736008,2619.7,2619.4,4.2559]
[1729649197551,1.6736008,2619.7,2619.5,3.43574]
[1729649198510,2.4324008,2619.9,2619.6,3.43562]
[1729649198801,1.6736008,2619.8,2619.5,3.43576]
[1729649199566,1.6736008,2619.8,2619.4,4.2559]
[1729649199567,1.6736008,2620.0,2619.7,3.43544]
[1729649199760,1.6736008,2619.9,2619.7,3.43544]
[1729649200550,1.6736008,2620.0,2619.7,3.43544]
[1729649200753,1.6736008,2619.8,2619.6,3.43554]
[1729649202883,2.4323008,2619.9,2619.6,3.43554]
[1729649204352,2.4323008,2619.9,2619.6,6.87111]
[1729649205411,2.4323008,2619.9,2619.7,3.4354]
[1729649206153,0.7587,2619.9,2619.7,3.4354]
[1729649206894,0.7587,2619.9,2619.6,3.43554]
[1729649207117,0.7587,2619.9,2619.7,3.4355]
[1729649207259,0.38383737,2620.0,2619.8,3.43531]
[1729649207455,1.6736008,2620.1,2619.9,3.43518]
[1729649207756,1.6736008,2620.1,2619.8,3.43529]
[1729649209387,1.6736008,2620.1,2619.7,0.7524]
[1729649210298,1.6736008,2620.1,2619.7,4.18786]
[1729649214403,1.6736008,2620.1,2619.7,1.54951999]
[1729649214714,1.6736008,2620.1,2619.8,3.43535]
[1729649215880,0.7587,2620.2,2619.9,3.43515]
[1729649216092,5.4629008,2620.4,2620.0,3.4351]
[1729649216409,5.4629008,2620.4,2619.9,3.43523]
[1729649216410,1.6736008,2620.2,2619.9,3.43523]
[1729649216712,3.7893,2620.4,2619.9,4.22282668]
[1729649216713,1.6736008,2620.3,2619.9,4.22282668]
[1729649216912,0.7893,2620.4,2619.9,4.22282668]
[1729649217068,1.6736008,2620.3,2619.9,5.01994667]
[1729649217272,1.6736008,2620.3,2620.0,3.43501]
[1729649217574,1.6736008,2620.3,2620.0,4.23212999]
[1729649218014,1.6736008,2620.2,2620.0,0.79711999]
[1729649218171,1.6736008,2620.3,2620.0,0.79711999]
[1729649218374,1.6736008,2620.2,2620.0,0.79711999]
[1729649219508,1.6736008,2620.2,2619.9,4.23234999]
[1729649219811,1.6736008,2620.3,2620.0,3.43509]
[1729649222533,1.6736008,2620.3,2620.0,4.20599]
[1729649223035,5.1083308,2620.3,2620.0,0.7709]
[1729649223239,5.1083308,2620.3,2619.8,8.43865999]
[1729649223416,1.6736008,2620.3,2619.9,4.23233999]
[1729649223738,1.6736008,2620.3,2620.0,3.43509]
[1729649224506,3.43446,2620.5,2620.0,3.43509]
[1729649224507,0.7893,2620.6,2620.2,0.7709]
[1729649224759,5.1077508,2620.8,2620.3,3.43465]
[1729649224904,3.43433,2620.6,2620.2,0.7709]
[1729649225390,4.22363,2620.6,2620.2,0.7709]
[1729649225787,2.4629008,2620.6,2620.2,4.20566]
[1729649225990,5.8972308,2620.6,2620.2,5.14143999]
[1729649226839,1.6736008,2620.5,2620.2,5.14143999]
[1729649227192,5.8972308,2620.6,2620.2,5.14143999]
[1729649227493,1.6736008,2620.4,2620.1,0.79711999]
[1729649227729,1.6736008,2620.4,2620.0,5.02371999]
[1729649228229,1.6736008,2620.2,2620.0,0.7915]
[1729649228431,5.1083708,2620.3,2620.0,0.7915]
[1729649228631,3.43477,2620.3,2620.0,0.7915]
[1729649228838,5.1081908,2620.4,2620.0,0.7915]
[1729649229134,5.1081908,2620.4,2620.0,1.58861999]
[1729649229697,1.6736008,2620.4,2620.0,5.02365999]
[1729649229925,8.5426008,2620.5,2620.0,5.98911699]
[1729649230235,3.43447,2620.5,2620.0,5.98911699]
[1729649230591,3.43447,2620.5,2620.0,9.42415699]
[1729649230822,3.43447,2620.5,2620.1,3.43497]
[1729649231041,5.1080708,2620.5,2620.1,3.43497]
[1729649233103,0.7893,2620.6,2620.1,3.43497]
[1729649233104,1.6736008,2620.6,2620.2,3.43485]
[1729649233830,1.6736008,2620.6,2620.1,4.23201999]
[1729649233831,5.1079508,2620.6,2620.1,4.23201999]
[1729649234133,5.1079508,2620.6,2620.2,3.43484]
[1729649234313,5.1079508,2620.6,2620.1,4.23201999]
[1729649234503,1.6736008,2620.5,2620.1,4.23201999]
[1729649234902,5.1079508,2620.6,2620.1,4.23201999]
[1729649235201,5.1079508,2620.6,2620.1,7.66691999]
[1729649235739,5.1079508,2620.6,2620.1,4.23201999]
[1729649236443,3.43422,2620.7,2620.3,0.7915]
[1729649236645,1.6736008,2620.5,2620.3,0.7915]
[1729649236937,1.6736008,2620.6,2620.3,0.7915]
[1729649238439,1.6736008,2620.6,2620.3,4.22621]
[1729649238614,3.43421,2620.7,2620.3,4.22621]
[1729649238810,3.43421,2620.7,2620.3,5.17823827]
[1729649239016,1.6736008,2620.6,2620.3,5.17823827]
[1729649239204,1.6736008,2620.7,2620.3,5.17823827]
[1729649239407,0.7968,2620.8,2620.4,3.43457]
[1729649239720,0.7968,2621.2,2620.8,0.7915]
[1729649239901,5.9040208,2621.2,2620.8,0.7915]
[1729649240252,1.6736008,2621.1,2620.8,0.7915]
[1729649240441,1.6736008,2621.1,2620.8,4.22556]
[1729649241146,1.6736008,2621.3,2620.9,3.43391]
[1729649241438,1.6736008,2621.2,2620.9,3.43386]
[1729649242848,2.05722127,2621.5,2620.9,3.43386]
[1729649243063,1.6736008,2621.4,2621.1,0.8106]
[1729649243342,1.6736008,2621.3,2621.1,0.8106]
[1729649244045,1.6736008,2621.4,2621.1,4.24426]
[1729649244629,1.6736008,2621.3,2621.1,4.24426]
[1729649245134,1.6736008,2621.4,2621.1,4.24426]
[1729649245652,3.81677047,2621.5,2621.1,0.8106]
[1729649245653,1.6736008,2621.3,2621.1,0.8106]
[1729649246009,1.6736008,2621.3,2621.1,4.24426]
[1729649246310,1.6736008,2621.4,2621.1,4.24426]
[1729649246846,1.6736008,2621.4,2621.1,0.8106]
[1729649248255,1.6736008,2621.3,2621.1,0.8106]
[1729649248414,1.6736008,2621.2,2621.1,0.8106]
[1729649248610,1.6736008,2621.3,2621.1,0.8106]
[1729649248934,7.25005047,2621.5,2621.1,0.8106]
[1729649248935,5.1068808,2621.4,2621.1,0.8106]
[1729649249248,1.6736008,2621.3,2621.1,0.8106]
[1729649252755,1.6736008,2621.2,2621.1,0.8106]
[1729649252915,1.6736008,2621.2,2620.9,4.24452]
[1729649253953,1.6736008,2621.0,2620.8,4.05771212]
[1729649254128,1.6736008,2621.1,2620.8,4.05771212]
[1729649254531,1.6736008,2620.9,2620.7,0.8106]
[1729649255916,5.1074108,2621.0,2620.7,0.8106]
[1729649256242,1.6736008,2620.9,2620.7,0.8106]
[1729649256426,1.6736008,2620.8,2620.5,4.22005]
[1729649256632,1.6736008,2620.9,2620.5,4.22005]
[1729649259771,1.6736008,2620.8,2620.5,0.7856]
[1729649260216,3.43408,2620.8,2620.5,0.7856]
[1729649260412,5.1076808,2620.8,2620.5,0.7856]
[1729649260616,5.8860308,2620.9,2620.5,0.7856]
[1729649261646,1.6736008,2620.8,2620.5,0.7856]
[1729649261850,5.8860308,2620.9,2620.5,4.22004]
[1729649262018,5.1074008,2621.0,2620.6,3.43431]
[1729649263921,1.6736008,2621.1,2620.5,4.22005]
[1729649264125,5.1071908,2621.2,2620.7,4.21978]
[1729649264350,1.6736008,2621.1,2620.7,4.21978]
[1729649265870,3.43359,2621.2,2620.7,4.21973]
[1729649265871,1.6736008,2621.2,2620.7,4.21973]
[1729649266052,1.6736008,2621.2,2620.8,3.43396]
[1729649267740,5.1070208,2621.3,2620.8,3.43396]
[1729649267946,1.6736008,2621.2,2620.8,3.43396]
[1729649268259,1.6736008,2621.2,2620.7,4.21973]
[1729649268260,5.1071408,2621.2,2620.7,4.21973]
[1729649268444,5.1071408,2621.2,2620.7,4.94865951]
[1729649268770,1.6736008,2621.1,2620.7,4.94865951]
[1729649268975,1.6736008,2621.1,2620.7,8.38276951]
[1729649269168,5.1071408,2621.2,2620.7,4.94863951]
[1729649270344,5.1074408,2621.0,2620.7,0.7856]
[1729649270668,5.1072308,2621.2,2620.7,0.7856]
[1729649270868,8.5408608,2621.2,2620.7,0.7856]
[1729649271082,5.1072308,2621.2,2620.7,0.7856]
[1729649271377,3.43371,2621.1,2620.7,0.7856]
[1729649272575,5.1072308,2621.2,2620.7,4.21977]
[1729649273333,8.5409008,2621.2,2620.7,4.21977]
[1729649273601,3.4337,2621.1,2620.7,4.21977]
[1729649273871,5.1072308,2621.2,2620.7,7.65389]
[1729649274168,5.1072308,2621.2,2620.7,5.23236581]
[1729649274944,3.43367,2621.1,2620.7,5.23236581]
[1729649276956,5.1072708,2621.1,2620.7,5.23236581]
[1729649277160,1.6736008,2621.1,2620.7,5.23236581]
[1729649277379,8.5408508,2621.2,2620.7,5.23236581]
[1729649277568,5.1072208,2621.2,2620.7,5.23236581]
[1729649278205,8.5408408,2621.2,2620.7,5.23236581]
[1729649278864,5.1072208,2621.2,2620.7,8.66649581]
[1729649279090,5.1072208,2621.2,2620.8,0.7702]
[1729649280272,3.43361,2621.2,2620.8,0.7702]
[1729649280473,5.1072108,2621.2,2620.8,0.7702]
[1729649280981,8.5408208,2621.2,2620.8,0.7702]
[1729649281184,0.7785,2621.4,2620.9,0.7702]
[1729649281185,3.43342,2621.3,2620.9,0.7702]
[1729649281422,5.1069908,2621.4,2620.9,0.7702]
[1729649281704,3.43344,2621.3,2620.9,5.00308734]
[1729649282074,3.43344,2621.3,2620.9,4.20412]
[1729649282276,5.1070408,2621.3,2620.9,5.79741238]
[1729649283808,5.1071508,2621.2,2620.9,2.36349238]
[1729649284114,5.1071508,2621.2,2620.9,0.7702]
[1729649284320,1.6736008,2621.0,2620.8,0.79896734]
[1729649284607,1.6736008,2621.0,2620.7,1.56916734]
[1729649284608,5.1074008,2621.0,2620.7,1.56916734]
[1729649285397,1.6736008,2621.0,2620.7,1.56916734]
[1729649285598,5.9222608,2621.2,2620.7,5.00335734]
[1729649285823,3.43371,2621.1,2620.7,1.56916734]
[1729649286318,5.1073108,2621.1,2620.7,1.56916734]
[1729649286637,4.24866,2621.2,2620.7,5.00330734]
[1729649286835,3.43366,2621.2,2620.8,0.79896734]
[1729649286995,3.43342,2621.3,2620.9,3.43384]
[1729649287805,3.43342,2621.3,2620.8,5.06461734]
[1729649288200,5.1071508,2621.2,2620.8,5.06461734]
[1729649288599,3.43371,2621.1,2620.8,1.63056734]
[1729649290349,5.1071508,2621.2,2620.8,1.63056734]
[1729649291042,1.6736008,2621.2,2620.8,5.06459734]
[1729649291202,5.1069808,2621.4,2620.9,4.51591286]
[1729649291407,5.1069808,2621.4,2621.0,0.8316]
[1729649291851,8.5403608,2621.4,2621.0,0.8316]
[1729649292564,3.43341,2621.3,2621.0,0.8316]
[1729649294479,5.1069708,2621.4,2621.0,0.8316]
[1729649294929,3.43342,2621.3,2621.0,0.8316]
[1729649296154,1.6736008,2621.4,2621.0,0.8316]
[1729649296335,3.43302,2621.6,2621.1,5.06416734]
[1729649296747,3.43315,2621.5,2621.1,1.63056734]
[1729649297359,5.1067508,2621.5,2621.1,1.63056734]
[1729649297544,5.1066408,2621.6,2621.2,0.73407005]
[1729649298039,5.1069408,2621.4,2621.1,1.63056734]
[1729649298547,5.1067508,2621.5,2621.1,0.8316]
[1729649298760,8.5399908,2621.5,2621.1,2.25685318]
[1729649298931,3.43315,2621.5,2621.1,2.25685318]
[1729649299765,1.6736008,2621.6,2621.1,9.12410318]
[1729649299987,5.1066408,2621.6,2621.1,5.69044318]
[1729649300555,3.43319,2621.5,2621.1,5.69044318]
[1729649300754,5.1067908,2621.5,2621.2,0.68888942]
[1729649300966,3.43319,2621.5,2621.2,0.68888942]
[1729649301177,3.43319,2621.5,2621.1,5.69044318]
[1729649302277,3.43304,2621.6,2621.2,4.25623]
[1729649302479,3.43277,2621.8,2621.4,0.8227]
[1729649302787,3.43289,2621.7,2621.4,0.8227]
[1729649303559,5.1062308,2621.9,2621.4,0.8227]
[1729649303760,3.43277,2621.8,2621.4,5.85526725]
[1729649304298,3.43277,2621.8,2621.5,0.79896734]
[1729649304456,3.43277,2621.8,2621.4,2.42200725]
[1729649305097,5.1063708,2621.8,2621.4,2.42200725]
[1729649305396,3.43277,2621.8,2621.4,2.42200725]
[1729649307193,3.43277,2621.8,2621.4,5.85527725]
[1729649307529,5.1063708,2621.8,2621.4,2.42200725]
[1729649307945,5.1063708,2621.8,2621.4,5.85525725]
[1729649308433,3.43277,2621.8,2621.4,5.85525725]
[1729649308605,5.1063708,2621.8,2621.4,2.42200725]
[1729649309429,5.1063708,2621.8,2621.4,1.62303991]
[1729649310115,1.6736008,2621.8,2621.4,5.85524725]
[1729649310314,5.1061608,2622.0,2621.6,0.8227]
[1729649310699,1.6736008,2621.9,2621.6,0.8227]
[1729649311011,1.6736008,2621.7,2621.6,0.8227]
[1729649311544,1.6736008,2621.8,2621.6,0.8227]
[1729649312131,3.43256,2622.0,2621.6,0.8227]
[1729649312132,1.6736008,2621.9,2621.6,0.8227]
[1729649312332,1.6736008,2621.8,2621.6,0.8227]
[1729649313754,1.6736008,2621.9,2621.6,0.8227]
[1729649316743,5.1061108,2622.0,2621.6,0.8227]
[1729649316945,1.6736008,2621.9,2621.6,0.8227]
[1729649317683,8.5386808,2622.0,2621.6,0.8227]
[1729649318038,8.5386908,2622.0,2621.6,0.8227]
[1729649318382,5.1060808,2622.1,2621.6,4.25568]
[1729649320857,5.1060808,2622.1,2621.7,0.8046]
[1729649321690,3.43249,2622.0,2621.7,0.8046]
[1729649322452,5.1060908,2622.0,2621.7,0.8046]
[1729649323807,1.6736008,2621.9,2621.7,0.8046]
[1729649323951,5.1062408,2621.9,2621.7,0.8046]
[1729649324150,1.6736008,2621.8,2621.7,0.8046]
[1729649324383,1.6736008,2621.9,2621.7,0.8046]
[1729649326752,5.1060908,2622.0,2621.7,0.8046]
[1729649326953,3.43249,2622.0,2621.7,0.8046]
[1729649328062,5.1060908,2622.0,2621.7,0.8046]
[1729649330795,3.43249,2622.0,2621.7,0.8046]
[1729649331352,8.5386908,2622.0,2621.7,0.8046]
[1729649332603,5.1060908,2622.0,2621.7,0.8046]
[1729649333093,8.5386808,2622.0,2621.7,0.8046]
[1729649333574,3.43262,2621.9,2621.7,0.8046]
[1729649335331,1.6736008,2621.8,2621.7,0.8046]
[1729649335693,1.6736008,2621.8,2621.4,0.8085]
[1729649335889,1.6736008,2621.8,2621.4,1.77575784]
[1729649337641,1.6736008,2621.8,2621.4,2.57472518]
[1729649338906,3.43262,2621.9,2621.4,2.57472518]
[1729649338907,5.9331908,2622.0,2621.4,2.57472518]
[1729649339478,3.43266,2621.9,2621.5,3.43313]
[1729649340482,3.43266,2621.9,2621.4,6.00799518]
[1729649341417,3.43266,2621.9,2621.5,0.79896734]
[1729649343524,0.8271,2622.0,2621.6,0.79896734]
[1729649343725,3.43233,2622.2,2621.7,1.68374906]
[1729649343923,3.4321,2622.3,2621.8,4.23170734]
[1729649344221,3.43231,2622.2,2621.8,0.79896734]
[1729649345180,3.43229,2622.2,2621.8,2.1009189]
[1729649345315,3.43229,2622.2,2621.9,0.79896734]
[1729649345525,0.8271,2622.4,2622.0,0.7518]
[1729649345826,3.43197,2622.4,2622.0,1.55076734]
[1729649345995,3.43194,2622.5,2622.0,6.40961624]
[1729649346202,0.8106,2622.6,2622.2,0.7518]
[1729649346203,3.43172,2622.6,2622.2,0.7518]
[1729649346385,3.43149,2622.8,2622.3,4.30725265]
[1729649346587,3.43149,2622.8,2622.4,0.7518]
[1729649346794,3.43149,2622.8,2622.5,0.79896734]
[1729649347220,3.43149,2622.8,2622.4,1.55076734]
[1729649348012,3.43149,2622.8,2622.5,0.79896734]
[1729649348388,3.43149,2622.8,2622.4,0.7518]
[1729649348389,3.43149,2622.8,2622.4,1.55076734]
[1729649348908,3.43149,2622.8,2622.5,0.79896734]
[1729649349113,3.43149,2622.8,2622.4,1.55076734]
[1729649350413,5.1050908,2622.8,2622.4,0.7518]